bitfinex/quotes_SOLUSD_20240613
["timestamp","ask_amount","ask_price","bid_price","bid_amount"]
[1718244960071,0.34,152.53,152.42,0.17]
[1718244960239,20.0,152.54,152.42,0.17]
[1718244960444,20.0,152.56,152.42,0.34]
[1718244960730,20.0,152.56,152.43,0.34]
[1718244960941,45.34,152.55,152.44,0.17]
[1718244961137,20.0,152.54,152.44,0.17]
[1718244961342,45.17,152.53,152.44,0.17]
[1718244961541,20.0,152.52,152.44,0.17]
[1718244961745,237.8034,152.57,152.45,0.17]
[1718244961934,237.6334,152.57,152.45,0.51]
[1718244962135,237.6334,152.57,152.46,0.17]
[1718244962335,237.6334,152.57,152.47,0.17]
[1718244962564,6.89178671,152.61,152.48,6.0998]
[1718244962869,26.58178671,152.61,152.48,6.0998]
[1718244963238,119.69,152.6,152.48,6.0998]
[1718244963570,119.86,152.58,152.44,6.0998]
[1718244963739,119.86,152.58,152.45,0.17]
[1718244963943,0.17,152.56,152.45,0.17]
[1718244964144,65.17,152.57,152.45,0.34]
[1718244964350,20.0,152.57,152.46,0.51]
[1718244964662,20.0,152.57,152.47,0.17]
[1718244964869,20.0,152.57,152.48,15.4477]
[1718244965082,20.0,152.59,152.49,0.68]
[1718244965244,20.0,152.62,152.49,0.68]
[1718244965576,20.0,152.62,152.49,0.51]
[1718244966569,0.17,152.61,152.49,0.51]
[1718244966797,0.34,152.61,152.49,0.51]
[1718244967091,0.34,152.6,152.49,0.51]
[1718244967291,0.17,152.59,152.49,0.51]
[1718244967614,45.17,152.59,152.49,0.51]
[1718244967980,20.0,152.58,152.49,0.51]
[1718244968492,20.0,152.58,152.49,0.34]
[1718244968789,20.0,152.58,152.49,0.17]
[1718244969087,20.0,152.58,152.49,0.34]
[1718244970189,20.0,152.62,152.5,0.17]
[1718244970388,20.0,152.62,152.51,0.17]
[1718244970687,20.0,152.62,152.51,0.51]
[1718244970981,20.0,152.62,152.51,0.17]
[1718244971186,20.0,152.62,152.49,0.17]
[1718244971399,20.0,152.62,152.49,0.51]
[1718244971602,45.68,152.61,152.49,0.51]
[1718244971892,0.17,152.59,152.48,15.4477]
[1718244972099,45.51,152.59,152.48,15.4477]
[1718244972301,20.17,152.58,152.48,15.4477]
[1718244972481,45.17,152.57,152.48,15.4477]
[1718244972678,20.0,152.56,152.48,15.4477]
[1718244972881,45.51,152.55,152.48,15.4477]
[1718244973081,20.0,152.54,152.48,15.4477]
[1718244973883,20.17,152.61,152.48,15.4477]
[1718244974198,45.51,152.6,152.49,0.17]
[1718244974391,20.0,152.59,152.49,0.17]
[1718244974902,20.0,152.59,152.5,0.17]
[1718244975206,20.0,152.61,152.51,6.6448]
[1718244976280,45.51,152.6,152.51,6.6448]
[1718244976483,20.0,152.59,152.51,6.6448]
[1718244977280,0.17,152.58,152.51,6.6448]
[1718244978586,45.17,152.58,152.51,6.6448]
[1718244978783,20.0,152.57,152.51,6.6448]
[1718244978994,45.17,152.56,152.48,15.4477]
[1718244979190,20.0,152.55,152.48,15.4477]
[1718244979503,0.17,152.54,152.48,15.4477]
[1718244980491,45.17,152.54,152.48,15.4477]
[1718244981406,20.0,152.53,152.48,15.4477]
[1718244981608,0.17,152.56,152.48,15.4477]
[1718244982486,20.0,152.59,152.49,0.17]
[1718244982792,0.17,152.6,152.49,0.34]
[1718244983502,0.17,152.6,152.49,0.17]
[1718244983707,0.17,152.6,152.48,15.4477]
[1718244983881,45.68,152.6,152.48,15.4477]
[1718244984507,20.0,152.59,152.48,15.4477]
[1718244984808,45.34,152.58,152.48,15.4477]
[1718244985113,20.0,152.57,152.48,15.4477]
[1718244987303,20.0,152.57,152.49,0.34]
[1718244987499,0.17,152.58,152.49,0.34]
[1718244987799,0.34,152.59,152.49,0.34]
[1718244988206,20.34,152.59,152.49,0.34]
[1718244988506,20.0,152.59,152.49,0.34]
[1718244988814,20.0,152.59,152.52,6.4351]
[1718244989026,0.8287957,152.63,152.52,6.4351]
[1718244989027,16.2764957,152.63,152.52,6.4351]
[1718244990411,20.0,152.62,152.53,16.6511]
[1718244990614,20.0,152.62,152.54,0.17]
[1718244990823,0.8287957,152.63,152.54,0.17]
[1718244991727,0.8287957,152.63,152.53,16.6511]
[1718244992024,65.8287957,152.63,152.53,16.6511]
[1718244992521,0.34,152.62,152.53,16.6511]
[1718244993518,0.17,152.62,152.53,16.6511]
[1718244993822,65.8287957,152.63,152.53,16.6511]
[1718244994225,0.34,152.62,152.53,16.6511]
[1718244994633,20.03,152.62,152.53,16.6511]
[1718244994938,19.8,152.58,152.53,16.6511]
[1718244995097,65.51,152.57,152.43,21.9138]
[1718244995402,19.8,152.55,152.43,21.9138]
[1718244995600,20.0,152.54,152.43,21.9138]
[1718244996015,45.17,152.53,152.43,21.9138]
[1718244996420,20.0,152.52,152.43,21.9138]
[1718244996616,39.8,152.52,152.43,21.9138]
[1718244996942,45.0,152.51,152.43,21.9138]
[1718244997108,20.0,152.5,152.43,21.9138]
[1718244997420,0.17,152.57,152.43,21.9138]
[1718244997651,65.68,152.58,152.44,16.6052]
[1718244997825,45.68,152.58,152.44,16.6052]
[1718244998027,45.68,152.58,152.45,0.68]
[1718244999323,20.0,152.57,152.45,0.68]
[1718244999526,45.34,152.56,152.45,0.68]
[1718244999828,20.0,152.55,152.45,0.68]
[1718245000504,139.34,152.61,152.47,16.5068]
[1718245000805,20.0,152.6,152.48,0.34]
[1718245001004,20.0,152.61,152.48,0.34]
[1718245002036,0.51,152.6,152.48,0.17]
[1718245002243,20.0,152.61,152.48,0.17]
[1718245002452,20.0,152.61,152.48,0.68]
[1718245003548,45.51,152.6,152.48,0.68]
[1718245003737,20.0,152.59,152.48,0.68]
[1718245003932,45.0,152.58,152.48,0.68]
[1718245004137,20.0,152.57,152.48,0.68]
[1718245004858,20.0,152.61,152.51,15.5553]
[1718245005036,0.17,152.62,152.52,0.17]
[1718245005238,45.34,152.62,152.52,0.17]
[1718245005544,20.0,152.61,152.52,0.51]
[1718245006045,20.8287957,152.63,152.52,0.51]
[1718245006351,0.8287957,152.63,152.52,0.51]
[1718245006721,45.8287957,152.63,152.52,0.51]
[1718245007125,0.8287957,152.63,152.54,0.17]
[1718245007325,0.8287957,152.63,152.55,16.0252]
[1718245008431,0.34,152.62,152.55,16.0252]
[1718245008628,20.8287957,152.63,152.55,16.0252]
[1718245015538,0.8287957,152.63,152.55,16.0252]
[1718245016033,20.8287957,152.63,152.55,16.0252]
[1718245021981,45.17,152.62,152.55,16.0252]
[1718245022176,0.17,152.6,152.55,16.0252]
[1718245022389,19.8,152.58,152.53,6.5649]
[1718245022577,20.0,152.57,152.53,6.5649]
[1718245023459,19.8,152.58,152.53,6.5649]
[1718245023793,19.8,152.62,152.53,6.5649]
[1718245023981,20.0,152.61,152.53,6.5649]
[1718245024886,45.34,152.6,152.53,6.5649]
[1718245025090,39.8,152.59,152.53,6.5649]
[1718245025295,20.0,152.59,152.53,6.5649]
[1718245025884,45.17,152.58,152.53,6.5649]
[1718245026182,20.0,152.57,152.53,6.5649]
[1718245028871,20.0,152.57,152.51,16.2316]
[1718245029071,45.17,152.56,152.51,16.2316]
[1718245029374,20.0,152.55,152.51,16.2316]
[1718245031080,20.0,152.57,152.51,16.2316]
[1718245043601,0.34,152.56,152.49,6.0105]
[1718245043898,0.34,152.56,152.36,215.29608992]
[1718245043899,0.17,152.54,152.47,15.2811]
[1718245044198,65.34,152.54,152.47,15.2811]
[1718245045398,20.0,152.54,152.47,15.2811]
[1718245045597,19.8,152.58,152.48,0.34]
[1718245045785,20.0,152.57,152.49,0.17]
[1718245047608,20.0,152.57,152.5,6.1146]
[1718245050228,45.17,152.56,152.5,6.1146]
[1718245050421,20.0,152.55,152.5,6.1146]
[1718245051604,20.0,152.57,152.5,6.1146]
[1718245051800,45.0,152.56,152.5,6.1146]
[1718245051998,20.0,152.55,152.5,6.1146]
[1718245056808,6.61,152.51,152.5,6.1146]
[1718245058519,6.61,152.51,152.47,15.2811]
[1718245058712,6.61,152.48,152.47,15.2811]
[1718245059019,6.61,152.49,152.47,15.2811]
[1718245059201,6.61,152.51,152.47,15.2811]
[1718245059407,6.61,152.52,152.47,15.2811]
[1718245060707,6.61,152.51,152.47,15.2811]
[1718245061724,6.61,152.49,152.47,15.2811]
[1718245061915,6.61,152.48,152.47,15.2811]
[1718245064110,20.0,152.55,152.47,15.2811]
[1718245064304,6.61,152.48,152.47,15.2811]
[1718245067032,6.61,152.48,152.43,16.5816]
[1718245067329,6.61,152.44,152.43,16.5816]
[1718245068235,0.17,152.53,152.43,16.5816]
[1718245068408,6.61,152.45,152.43,16.5816]
[1718245069224,6.61,152.46,152.43,16.5816]
[1718245072130,6.61,152.45,152.43,16.5816]
[1718245076530,20.51,152.53,152.43,16.5816]
[1718245076721,6.61,152.45,152.43,16.5816]
[1718245079042,159.19,152.52,152.41,6.3996]
[1718245079231,6.61,152.42,152.39,16.3094]
[1718245080331,6.61,152.42,152.39,16.16549208]
[1718245081421,26.32495953,152.51,152.39,16.16549208]
[1718245081621,20.0,152.5,152.41,6.61]
[1718245081938,6.61,152.47,152.41,6.61]
[1718245082937,20.0,152.5,152.41,6.61]
[1718245083155,35.73803387,152.55,152.44,6.2405]
[1718245083442,35.73803387,152.55,152.46,21.9248]
[1718245083443,6.61,152.52,152.46,21.9248]
[1718245083814,32.6805,152.56,152.46,21.9248]
[1718245084016,6.61,152.51,152.46,21.9248]
[1718245084249,37.9762126,152.56,152.46,21.9248]
[1718245084421,6.61,152.51,152.46,15.3148]
[1718245084629,6.61,152.49,152.46,15.3148]
[1718245084931,40.51442797,152.56,152.46,15.3148]
[1718245084932,44.86799931,152.56,152.46,15.3148]
[1718245085119,6.61,152.5,152.46,15.3148]
[1718245085522,6.61,152.51,152.46,15.3148]
[1718245085939,6.61,152.5,152.46,15.3148]
[1718245086318,13.13228671,152.56,152.46,21.9248]
[1718245086519,20.0,152.55,152.47,0.17]
[1718245086749,6.61,152.51,152.47,0.17]
[1718245087817,20.0,152.55,152.47,6.95]
[1718245088025,6.61,152.54,152.49,6.61]
[1718245088520,20.0,152.55,152.5,0.34]
[1718245088739,244.52518671,152.61,152.51,6.61]
[1718245088945,6.89178671,152.61,152.53,15.7836]
[1718245089249,6.61,152.58,152.53,22.3936]
[1718245089445,6.61,152.58,152.54,0.17]
[1718245089751,386.8287957,152.63,152.53,15.7836]
[1718245089752,6.61,152.56,152.53,15.7836]
[1718245089922,386.8287957,152.63,152.53,15.7836]
[1718245090125,6.61,152.59,152.54,0.17]
[1718245090457,20.0,152.62,152.54,7.12]
[1718245090622,20.0,152.62,152.55,6.61]
[1718245090817,20.0,152.62,152.56,0.17]
[1718245091040,6.61,152.6,152.56,0.17]
[1718245091552,6.61,152.59,152.56,0.17]
[1718245091758,6.61,152.59,152.55,0.34]
[1718245091939,20.0,152.62,152.55,6.78]
[1718245092139,6.61,152.61,152.55,6.95]
[1718245093248,20.0,152.62,152.55,6.95]
[1718245093648,0.8287957,152.63,152.55,6.95]
[1718245093840,0.8287957,152.63,152.58,0.17]
[1718245094167,0.8287957,152.63,152.59,15.6589]
[1718245094539,6.61,152.62,152.59,15.6589]
[1718245095069,0.8287957,152.63,152.59,15.6589]
[1718245095240,0.8287957,152.63,152.6,6.95]
[1718245095444,0.8287957,152.63,152.61,0.17]
[1718245095752,0.8287957,152.63,152.61,6.78]
[1718245095947,0.8287957,152.63,152.61,0.17]
[1718245096659,237.6334,152.72,152.65,16.4578]
[1718245096865,5.26848693,152.75,152.65,16.4578]
[1718245097158,6.61,152.7,152.65,16.4578]
[1718245097566,6.61,152.7,152.65,23.0678]
[1718245097859,6.61,152.7,152.65,16.4578]
[1718245098065,26.44,152.72,152.65,16.4578]
[1718245098259,22.7952,152.76,152.65,16.4578]
[1718245098563,6.61,152.69,152.65,16.4578]
[1718245099263,16.4578,152.76,152.65,16.4578]
[1718245099453,238.4621957,152.78,152.69,0.17]
[1718245099656,238.4621957,152.78,152.68,6.61]
[1718245099657,6.61,152.73,152.68,6.61]
[1718245099962,6.61,152.72,152.67,6.95]
[1718245100665,238.4621957,152.78,152.66,6.8037]
[1718245100666,100.0,152.77,152.66,6.4637]
[1718245100853,19.78,152.72,152.61,22.8704]
[1718245101056,19.78,152.69,152.61,16.4627]
[1718245101349,19.78,152.66,152.57,22.8704]
[1718245101572,0.17,152.65,152.57,22.8704]
[1718245101750,20.0,152.65,152.57,22.8704]
[1718245102071,237.6334,152.71,152.57,22.8704]
[1718245102280,237.6334,152.71,152.59,16.3363]
[1718245102569,237.6334,152.71,152.61,16.3363]
[1718245102802,237.6334,152.71,152.62,20.0]
[1718245102966,237.6334,152.71,152.63,0.17]
[1718245103555,6.38339484,152.77,152.63,0.17]
[1718245103556,6.38339484,152.77,152.64,21.6404]
[1718245103773,19.78,152.77,152.65,0.51]
[1718245103952,20.0,152.76,152.65,0.68]
[1718245104358,20.0,152.76,152.65,0.51]
[1718245104873,20.0,152.77,152.66,0.17]
[1718245105182,20.0,152.77,152.65,0.51]
[1718245105473,45.0,152.76,152.65,0.51]
[1718245105678,45.0,152.76,152.66,0.17]
[1718245106365,20.0,152.77,152.66,0.17]
[1718245108984,45.0,152.76,152.66,0.17]
[1718245109661,1.13904245,152.75,152.66,0.17]
[1718245110656,1.13904245,152.75,152.67,0.17]
[1718245110874,1.13904245,152.75,152.67,0.34]
[1718245112085,1.13904245,152.75,152.65,0.17]
[1718245112262,20.91904245,152.75,152.65,0.51]
[1718245113086,0.17,152.74,152.64,21.6404]
[1718245113286,19.78,152.72,152.64,21.6404]
[1718245114885,0.17,152.71,152.64,21.6404]
[1718245115092,65.51,152.71,152.64,21.6404]
[1718245115274,0.17,152.74,152.64,21.6404]
[1718245115483,19.78,152.73,152.64,21.6404]
[1718245115687,20.0,152.72,152.64,21.6404]
[1718245116574,46.13904245,152.75,152.65,0.34]
[1718245116784,1.13904245,152.75,152.65,0.51]
[1718245117293,21.13904245,152.75,152.65,0.51]
[1718245117589,19.78,152.76,152.66,0.17]
[1718245117889,1.96772047,152.78,152.66,0.17]
[1718245118771,1.96772047,152.78,152.69,6.5138]
[1718245118972,1.96772047,152.78,152.7,0.34]
[1718245119884,21.96772047,152.78,152.7,0.34]
[1718245120698,20.8287957,152.78,152.7,0.34]
[1718245120876,20.8287957,152.78,152.69,6.5138]
[1718245121078,40.6087957,152.78,152.69,6.5138]
[1718245121394,40.6087957,152.78,152.7,0.17]
[1718245121978,20.8287957,152.78,152.7,0.17]
[1718245122175,20.8287957,152.78,152.7,0.34]
[1718245123614,0.8287957,152.78,152.7,0.34]
[1718245123915,0.8287957,152.78,152.72,16.0517]
[1718245124213,0.8287957,152.78,152.73,0.17]
[1718245124700,0.8287957,152.78,152.72,15.8817]
[1718245126503,0.8287957,152.78,152.73,0.34]
[1718245127013,0.8287957,152.78,152.73,0.17]
[1718245127218,0.8287957,152.78,152.73,0.34]
[1718245129994,0.8287957,152.78,152.72,15.8817]
[1718245130697,0.8287957,152.78,152.73,0.34]
[1718245131006,6.59,152.76,152.73,0.34]
[1718245131599,0.8287957,152.78,152.73,0.34]
[1718245131796,6.59,152.76,152.73,0.34]
[1718245132118,0.8287957,152.78,152.73,0.34]
[1718245132608,6.59,152.77,152.73,0.34]
[1718245133297,0.8287957,152.78,152.73,0.34]
[1718245133609,6.59,152.77,152.73,0.34]
[1718245136313,0.8287957,152.78,152.72,15.8817]
[1718245136611,6.59,152.74,152.72,15.8817]
[1718245138205,0.8287957,152.78,152.69,6.5138]
[1718245138401,6.59,152.72,152.69,6.5138]
[1718245139610,0.17,152.77,152.69,6.5138]
[1718245139921,0.17,152.77,152.68,15.8306]
[1718245140127,6.59,152.72,152.68,15.8306]
[1718245140300,6.59,152.71,152.68,15.8306]
[1718245141223,0.17,152.77,152.65,6.6176]
[1718245141408,6.59,152.71,152.65,6.6176]
[1718245141607,6.59,152.7,152.65,6.6176]
[1718245142224,0.34,152.77,152.66,0.17]
[1718245142434,6.59,152.71,152.66,7.1]
[1718245142607,6.59,152.72,152.67,6.59]
[1718245143406,6.59,152.73,152.69,0.17]
[1718245143606,0.8287957,152.78,152.69,0.17]
[1718245143607,0.8287957,152.78,152.71,0.17]
[1718245143813,6.59,152.75,152.71,0.68]
[1718245144031,6.59,152.74,152.71,0.17]
[1718245144225,6.59,152.74,152.7,15.9438]
[1718245144726,6.59,152.72,152.7,15.9438]
[1718245144923,6.59,152.73,152.7,15.9438]
[1718245146028,0.8287957,152.78,152.7,15.9438]
[1718245146198,6.59,152.72,152.7,15.9438]
[1718245148130,6.59,152.73,152.7,15.9438]
[1718245148320,0.8287957,152.78,152.7,15.9438]
[1718245148503,0.8287957,152.78,152.71,0.17]
[1718245148708,6.59,152.74,152.71,0.17]
[1718245149110,0.8287957,152.78,152.71,6.8103]
[1718245149327,6.59,152.75,152.71,13.4003]
[1718245149504,6.59,152.76,152.71,13.4003]
[1718245151428,6.59,152.77,152.72,6.93]
[1718245151642,7.4187957,152.78,152.73,0.17]
[1718245152004,6.59,152.77,152.73,0.17]
[1718245153634,7.4187957,152.78,152.73,0.17]
[1718245154032,0.8287957,152.78,152.74,0.17]
[1718245154211,0.8287957,152.78,152.74,0.34]
[1718245154411,0.8287957,152.78,152.75,0.17]
[1718245154612,7.4187957,152.78,152.75,0.17]
[1718245155411,0.8287957,152.78,152.76,0.17]
[1718245155944,0.8287957,152.78,152.77,15.2027]
[1718245156135,0.8287957,152.78,152.77,22.1327]
[1718245156632,0.8287957,152.78,152.77,15.5427]
[1718245157011,0.8287957,152.78,152.77,15.2027]
[1718245159338,0.8287957,152.78,152.75,0.17]
[1718245159547,7.4187957,152.78,152.74,0.17]
[1718245159843,0.8287957,152.78,152.74,0.34]
[1718245160657,7.4187957,152.78,152.74,0.34]
[1718245160817,0.8287957,152.78,152.74,6.93]
[1718245161228,0.8287957,152.78,152.75,0.17]
[1718245162255,0.8287957,152.78,152.74,0.34]
[1718245162429,0.8287957,152.78,152.74,6.93]
[1718245162959,0.8287957,152.78,152.76,0.17]
[1718245163164,0.8287957,152.78,152.76,0.34]
[1718245163446,0.8287957,152.78,152.77,0.17]
[1718245163626,0.8287957,152.78,152.77,7.1]
[1718245163821,0.8287957,152.78,152.77,7.27]
[1718245164050,12.56869484,152.92,152.79,0.17]
[1718245164255,0.10751157,152.86,152.81,6.59]
[1718245164743,6.69751157,152.86,152.81,6.59]
[1718245165133,0.10751157,152.86,152.82,0.17]
[1718245165548,0.10751157,152.86,152.82,6.76]
[1718245165965,0.10751157,152.86,152.83,6.76]
[1718245166130,0.10751157,152.86,152.83,6.59]
[1718245166326,0.10751157,152.86,152.83,0.17]
[1718245166528,0.10751157,152.86,152.82,0.34]
[1718245166744,6.69751157,152.86,152.82,0.17]
[1718245166938,6.69751157,152.86,152.82,0.51]
[1718245167138,0.10751157,152.86,152.82,0.51]
[1718245167549,0.10751157,152.86,152.82,7.1]
[1718245168268,0.10751157,152.86,152.82,0.51]
[1718245168448,6.69751157,152.86,152.82,0.51]
[1718245169486,6.59,152.83,152.78,21.6717]
[1718245169766,0.10751157,152.86,152.78,21.6717]
[1718245169973,0.10751157,152.86,152.82,6.59]
[1718245170553,6.59,152.87,152.83,0.17]
[1718245170775,18.20575415,152.92,152.83,0.17]
[1718245170962,6.59,152.87,152.83,0.17]
[1718245171134,18.20575415,152.92,152.81,0.17]
[1718245171135,6.59,152.86,152.81,0.17]
[1718245171452,18.20575415,152.92,152.81,0.17]
[1718245171453,6.59,152.85,152.81,0.17]
[1718245171649,6.59,152.85,152.8,0.51]
[1718245172559,6.59,152.85,152.8,7.1]
[1718245172760,18.20575415,152.92,152.8,7.1]
[1718245172935,6.59,152.86,152.8,7.1]
[1718245173761,6.59,152.86,152.81,0.17]
[1718245174055,6.59,152.86,152.82,0.17]
[1718245174262,6.59,152.86,152.82,0.34]
[1718245175052,6.59,152.86,152.82,0.17]
[1718245175567,6.59,152.86,152.81,0.68]
[1718245176980,20.0,152.91,152.81,0.68]
[1718245177152,11.31396744,152.92,152.83,0.17]
[1718245177343,6.59,152.88,152.83,6.76]
[1718245177550,6.59,152.87,152.83,0.17]
[1718245178774,11.31396744,152.92,152.83,6.76]
[1718245179077,6.59,152.88,152.84,0.17]
[1718245179264,6.59,152.88,152.84,0.34]
[1718245180270,11.31396744,152.92,152.84,0.34]
[1718245180574,6.59,152.88,152.84,0.34]
[1718245182567,4.9305726,152.92,152.84,0.34]
[1718245182767,6.59,152.88,152.84,0.34]
[1718245183267,4.9305726,152.92,152.84,0.17]
[1718245183468,6.59,152.88,152.83,0.34]
[1718245183669,1.13776103,152.92,152.85,0.17]
[1718245183853,1.13776103,152.92,152.85,0.34]
[1718245184172,6.59,152.88,152.85,0.34]
[1718245184352,1.13776103,152.92,152.85,0.34]
[1718245184547,6.59,152.87,152.85,0.34]
[1718245184770,6.59,152.88,152.85,0.17]
[1718245184975,6.59,152.87,152.84,0.34]
[1718245185153,6.59,152.87,152.84,0.17]
[1718245185760,1.13776103,152.92,152.84,0.17]
[1718245185963,6.59,152.88,152.84,0.17]
[1718245188254,1.13776103,152.92,152.84,0.17]
[1718245188565,1.13776103,152.92,152.86,0.17]
[1718245188885,6.59,152.9,152.86,0.68]
[1718245189253,6.59,152.91,152.86,0.68]
[1718245189663,0.8287957,152.94,152.86,7.27]
[1718245189871,6.59,152.91,152.86,7.27]
[1718245190375,0.8287957,152.94,152.88,0.17]
[1718245190685,6.59,152.93,152.88,7.1]
[1718245190858,0.8287957,152.94,152.88,7.1]
[1718245191260,6.59,152.93,152.88,7.1]
[1718245192265,0.8287957,152.94,152.88,7.1]
[1718245192473,0.8287957,152.94,152.9,0.17]
[1718245192682,0.8287957,152.94,152.93,6.76]
[1718245192981,0.8287957,152.94,152.93,7.1]
[1718245193276,0.8287957,152.94,152.93,7.27]
[1718245198175,6.59,153.01,152.93,7.27]
[1718245198371,237.6334,153.05,152.96,6.59]
[1718245198575,6.59,153.01,152.97,0.51]
[1718245198768,6.59,153.02,152.97,0.34]
[1718245198965,6.59,153.01,152.94,0.17]
[1718245199178,6.59,153.01,152.95,0.51]
[1718245199382,6.59,152.99,152.95,0.51]
[1718245199780,26.36,153.04,152.95,0.51]
[1718245199976,1.13670898,153.06,152.97,0.17]
[1718245200200,1.13670898,153.06,152.99,0.17]
[1718245200432,6.59,153.03,152.99,0.51]
[1718245201699,1.13670898,153.06,152.99,7.1]
[1718245201900,6.59,153.04,152.99,7.1]
[1718245202081,21.9595,153.08,152.99,7.1]
[1718245202082,6.59,153.05,152.99,7.1]
[1718245203696,1.96538624,153.09,152.99,0.51]
[1718245203902,6.59,153.08,153.02,6.59]
[1718245204103,6.59,153.08,153.03,0.34]
[1718245204309,0.8287957,153.09,153.03,0.34]
[1718245204482,0.8287957,153.09,153.05,0.17]
[1718245204684,0.8287957,153.09,153.05,0.51]
[1718245204904,7.4187957,153.09,153.05,0.51]
[1718245205096,7.4187957,153.09,153.05,0.34]
[1718245205491,0.8287957,153.09,152.91,6.55]
[1718245205705,6.59,153.03,152.96,16.5359]
[1718245206201,0.8287957,153.09,152.96,16.5359]
[1718245206508,0.8287957,153.09,152.97,100.0]
[1718245206707,0.8287957,153.09,153.03,16.0974]
[1718245206889,7.4187957,153.09,153.04,6.59]
[1718245207205,7.4187957,153.09,153.03,16.0974]
[1718245207206,0.8287957,153.09,153.05,6.59]
[1718245207394,0.8287957,153.09,153.07,0.17]
[1718245207598,0.8287957,153.09,153.07,0.34]
[1718245207924,0.8287957,153.09,153.08,0.17]
[1718245208084,0.8287957,153.09,153.08,7.27]
[1718245209501,6.59,153.16,153.08,13.4527]
[1718245209705,265.12911614,153.2,153.08,13.4527]
[1718245209706,238.76911614,153.2,153.14,6.59]
[1718245210012,6.59,153.19,153.15,0.17]
[1718245210323,1.13542762,153.23,153.15,0.34]
[1718245210617,6.59,153.2,153.15,0.34]
[1718245210798,1.13542762,153.23,153.15,0.34]
[1718245211199,6.59,153.18,153.14,0.17]
[1718245211402,6.59,153.17,153.13,0.17]
[1718245211596,6.59,153.17,153.09,16.4078]
[1718245211822,6.59,153.15,153.1,0.34]
[1718245212030,6.4413,153.21,153.11,0.68]
[1718245212215,5.4413,153.21,153.12,6.59]
[1718245212414,5.4413,153.21,153.07,6.2731]
[1718245212614,45.0,153.2,153.07,6.2731]
[1718245212849,19.66,153.18,153.07,6.2731]
[1718245214235,19.66,153.18,153.08,0.68]
[1718245214431,25.1013,153.21,153.08,0.68]
[1718245214616,25.1013,153.21,153.1,0.17]
[1718245214811,25.1013,153.21,153.1,0.68]
[1718245215843,20.0,153.2,153.1,0.68]
[1718245216031,25.1013,153.21,153.1,0.68]
[1718245216541,15.5743,153.22,153.12,0.17]
[1718245216715,1.13542762,153.23,153.12,21.98554675]
[1718245216923,0.8287957,153.24,153.14,0.17]
[1718245217221,0.8287957,153.24,153.14,1.98537624]
[1718245217417,0.8287957,153.24,153.14,0.68]
[1718245217846,35.0672957,153.26,153.14,0.68]
[1718245218018,35.0672957,153.26,153.15,0.34]